bitfinex-derivatives/quotes_SOLF0:USTF0_20251023
["timestamp","ask_amount","ask_price","bid_price","bid_amount"]
[1761179866019,5.15372565,180.82,180.78,4.9778]
[1761179866313,11.48840053,180.84,180.79,45.96]
[1761179866314,4.17035572,180.81,180.79,45.96]
[1761179866522,2.98,180.84,180.8,45.96]
[1761179866820,4.16948901,180.83,180.8,45.96]
[1761179867019,4.16948901,180.82,180.81,4.977]
[1761179867512,8.13372565,180.87,180.83,4.9762]
[1761179867704,4.16784326,180.86,180.84,45.98]
[1761179867911,4.16784326,180.85,180.84,45.98]
[1761179868111,7.14784326,180.85,180.84,45.98]
[1761179868615,4.16784326,180.85,180.84,45.98]
[1761179869517,2.98,180.88,180.84,45.98]
[1761179869708,7.09689501,180.87,180.84,45.98]
[1761179870016,4.11689501,180.86,180.84,45.98]
[1761179870217,2.98,180.87,180.84,45.98]
[1761179870417,4.11565954,180.86,180.85,1.57963356]
[1761179870622,2.98,180.89,180.85,1.57963356]
[1761179870917,7.08459778,180.88,180.85,1.57963356]
[1761179871214,4.10459778,180.87,180.85,1.57963356]
[1761179871413,2.98,180.88,180.85,1.57963356]
[1761179871609,4.10366523,180.87,180.85,1.57963356]
[1761179871813,2.98,180.88,180.85,1.57963356]
[1761179872116,4.10366523,180.87,180.85,1.57963356]
[1761179872315,2.98,180.88,180.85,1.57963356]
[1761179873505,2.98,180.88,180.87,1.57963356]
[1761179873714,7.082561,180.88,180.87,1.57963356]
[1761179874323,2.98,180.88,180.87,1.57963356]
[1761179874722,2.98,180.88,180.87,47.51963356]
[1761179877610,2.98,180.88,180.87,45.94]
[1761179877811,2.98,180.88,180.87,47.51963356]
[1761179881428,2.98,180.88,180.87,45.94]
[1761179881615,2.72,180.87,180.75,12.0]
[1761179881924,2.72,180.85,180.83,1.57963356]
[1761179882124,2.72,180.85,180.84,45.92]
[1761179884024,2.72,180.9,180.84,45.92]
[1761179884319,2.72,180.88,180.87,1.57963356]
[1761179884525,2.72,180.91,180.87,1.57963356]
[1761179884729,4.09643664,180.9,180.87,1.57963356]
[1761179885024,6.81643664,180.89,180.87,1.57963356]
[1761179885215,2.72,180.89,180.87,1.57963356]
[1761179886529,2.72,180.92,180.87,1.57963356]
[1761179886826,2.72,180.9,180.87,1.57963356]
[1761179887027,4.0961556,180.89,180.87,1.57963356]
[1761179887223,2.72,180.89,180.87,1.57963356]
[1761179888526,2.72,180.93,180.87,6.55493356]
[1761179888717,4.09535495,180.92,180.9,1.57963356]
[1761179888923,2.72,180.93,180.9,1.57963356]
[1761179889119,5.15372565,180.97,180.9,1.57963356]
[1761179889328,2.72,180.95,180.92,1.57963356]
[1761179889526,2.72,180.93,180.92,1.57963356]
[1761179889828,6.81390335,180.93,180.92,1.57963356]
[1761179891831,2.72,180.92,180.9,1.57963356]
[1761179892726,6.81426111,180.91,180.9,1.57963356]
[1761179892926,2.72,180.9,180.89,45.9]
[1761179894126,6.81404566,180.9,180.86,1.57963356]
[1761179894322,2.72,180.9,180.86,1.57963356]
[1761179896330,2.72,180.94,180.88,1.57963356]
[1761179896528,2.72,180.92,180.9,1.57963356]
[1761179896735,4.09401833,180.91,180.9,1.57963356]
[1761179897235,2.72,180.92,180.9,1.57963356]
[1761179898839,2.72,180.92,180.87,2.46385489]
[1761179900033,4.09430359,180.91,180.87,2.46385489]
[1761179900240,2.72,180.9,180.85,45.9]
[1761179900939,4.09267487,180.89,180.85,45.9]
[1761179901140,2.72,180.89,180.85,45.9]
[1761179903238,2.72,180.87,180.85,45.9]
[1761179903438,4.09484583,180.86,180.8,45.92]
[1761179903744,2.46385489,180.93,180.8,45.92]
[1761179903745,2.71,180.84,180.8,45.92]
[1761179905036,2.71,180.87,180.8,45.92]
[1761179905229,4.09811425,180.86,180.8,45.92]
[1761179905436,4.09811425,180.85,180.8,45.92]
[1761179905739,2.71,180.87,180.8,45.92]
[1761179905941,4.09858975,180.86,180.8,45.92]
[1761179906139,2.71,180.87,180.8,45.92]
[1761179906336,4.09893626,180.86,180.8,45.92]
[1761179906538,4.09893626,180.85,180.8,45.92]
[1761179906739,2.71,180.87,180.8,45.92]
[1761179906939,4.09982151,180.86,180.8,45.92]
[1761179907143,2.71,180.87,180.8,45.92]
[1761179907438,2.71,180.85,180.8,45.92]
[1761179907740,4.10008668,180.86,180.8,45.92]
[1761179907741,4.10008668,180.84,180.8,45.92]
[1761179907942,4.10008668,180.83,180.8,45.92]
[1761179908144,2.71,180.86,180.8,45.92]
[1761179908335,5.15372565,180.87,180.8,45.92]
[1761179908336,2.97,180.84,180.8,45.92]
[1761179908537,4.10203288,180.83,180.8,45.92]
[1761179908740,2.97,180.84,180.8,45.92]
[1761179908940,2.97,180.82,180.8,45.92]
[1761179910044,5.15372565,180.86,180.8,45.92]
[1761179910245,2.97,180.84,180.8,45.92]
[1761179910449,7.07522615,180.83,180.8,45.92]
[1761179910639,4.10522615,180.82,180.8,45.92]
[1761179910838,2.97,180.83,180.8,45.92]
[1761179911038,4.10725606,180.82,180.8,45.92]
[1761179911240,2.97,180.83,180.8,45.92]
[1761179911546,4.10811293,180.82,180.8,45.92]
[1761179911739,4.10811293,180.81,180.8,45.92]
[1761179915745,2.97,180.85,180.8,45.92]
[1761179915947,4.10608649,180.84,180.8,45.92]
[1761179916148,4.10608649,180.83,180.8,45.92]
[1761179916447,4.10608649,180.82,180.8,45.92]
[1761179916646,7.07595604,180.81,180.8,45.92]
[1761179920058,4.10595604,180.81,180.73,4.979]
[1761179920260,7.07595604,180.8,180.74,36.2]
[1761179920461,4.10595604,180.79,180.74,36.2]
[1761179920666,2.97,180.8,180.74,36.2]
[1761179920866,4.10305244,180.79,180.74,36.2]
[1761179921168,2.97,180.8,180.74,36.2]
[1761179921366,4.10188001,180.79,180.74,36.2]
[1761179921561,5.15372565,180.83,180.74,36.2]
[1761179921562,8.12372565,180.83,180.74,36.2]
[1761179921867,7.07171912,180.82,180.74,36.2]
[1761179922161,4.10171912,180.81,180.74,36.2]
[1761179922354,4.10171912,180.8,180.74,36.2]
[1761179922560,4.10171912,180.79,180.74,36.2]
[1761179922754,2.97,180.82,180.74,36.2]
[1761179922956,4.10075502,180.81,180.74,36.2]
[1761179923267,4.10075502,180.8,180.74,36.2]
[1761179923566,2.97,180.81,180.74,36.2]
[1761179923767,4.1000795,180.8,180.74,36.2]
[1761179923969,2.97,180.81,180.74,36.2]
[1761179924267,4.10015907,180.8,180.74,36.2]
[1761179924462,2.97,180.81,180.74,36.2]
[1761179924667,4.09961132,180.8,180.74,36.2]
[1761179924861,4.09961132,180.79,180.74,36.2]
[1761179925057,2.97,180.82,180.74,36.2]
[1761179925261,2.97,180.8,180.74,36.2]
[1761179925468,7.06912207,180.79,180.74,36.2]
[1761179925669,2.97,180.79,180.74,36.2]
[1761179931070,5.15372565,180.84,180.74,36.2]
[1761179931071,8.12372565,180.84,180.74,36.2]
[1761179931271,7.06420537,180.83,180.74,36.2]
[1761179931569,4.09420537,180.82,180.74,41.1788]
[1761179931770,4.09420537,180.81,180.74,41.1788]
[1761179931958,2.97,180.83,180.74,41.1788]
[1761179932161,4.09396582,180.82,180.74,41.1788]
[1761179932372,7.06396582,180.81,180.74,36.2]
[1761179932563,2.97,180.81,180.74,36.2]
[1761179932762,4.09421214,180.8,180.74,36.2]
[1761179932964,2.97,180.81,180.74,36.2]
[1761179933160,4.09421214,180.8,180.74,36.2]
[1761179933372,2.97,180.81,180.74,36.2]
[1761179938277,2.97,180.84,180.74,36.2]
[1761179938575,6.9681619,180.83,180.74,41.1788]
[1761179938774,4.0981619,180.82,180.74,41.1788]
[1761179938977,4.0981619,180.81,180.74,41.1788]
[1761179939277,2.87,180.83,180.74,41.1788]
[1761179939475,4.09881535,180.82,180.75,2.46385489]
[1761179939675,2.87,180.85,180.75,2.46385489]
[1761179939875,6.96855643,180.84,180.75,2.46385489]
[1761179940065,4.09855643,180.83,180.75,2.46385489]
[1761179940269,2.87,180.84,180.75,2.46385489]
[1761179940471,4.09880601,180.83,180.75,2.46385489]
[1761179940671,2.87,180.84,180.75,2.46385489]
[1761179940979,4.09880601,180.83,180.76,4.9781]
[1761179941185,2.87,180.84,180.76,4.9781]
[1761179941479,6.96927585,180.83,180.76,4.9781]
[1761179941681,4.09927585,180.82,180.76,4.9781]
[1761179941864,2.87,180.83,180.76,4.9781]
[1761179942070,5.15372565,180.87,180.77,2.46385489]
[1761179942270,4.10028026,180.86,180.77,2.46385489]
[1761179942474,4.10028026,180.85,180.77,2.46385489]
[1761179942675,4.10028026,180.84,180.8,4.977]
[1761179942875,8.02372565,180.88,180.8,4.977]
[1761179943076,4.10013204,180.87,180.8,4.977]
[1761179943279,4.10013204,180.86,180.8,4.977]
[1761179943478,4.10013204,180.85,180.8,4.977]
[1761179943674,2.87,180.88,180.8,4.977]
[1761179943879,4.05401221,180.87,180.8,4.977]
[1761179944079,4.05401221,180.86,180.8,4.977]
[1761179944384,4.05401221,180.85,180.8,4.977]
[1761179944582,2.87,180.88,180.8,4.977]
[1761179944786,4.05588829,180.87,180.81,4.9768]
[1761179944989,4.05588829,180.86,180.81,4.9768]
[1761179945286,8.02372565,180.9,180.81,4.9768]
[1761179945479,4.05657197,180.89,180.81,4.9768]
[1761179945680,4.05657197,180.88,180.81,4.9768]
[1761179945881,2.87,180.9,180.82,50.8965]
[1761179945882,4.05657197,180.87,180.82,50.8965]
[1761179946178,4.05758809,180.86,180.82,50.8965]
[1761179946383,2.87,180.9,180.82,50.8965]
[1761179946589,4.05685294,180.89,180.82,50.8965]
[1761179946777,4.05685294,180.88,180.82,50.8965]
[1761179947073,4.05685294,180.87,180.82,50.8965]
[1761179947273,4.05685294,180.86,180.82,50.8965]
[1761179947486,2.87,180.89,180.82,50.8965]
[1761179947688,4.05710874,180.88,180.82,50.8965]
[1761179947886,6.92710874,180.87,180.79,4.9773]
[1761179948090,6.92710874,180.87,180.78,2.46385489]
[1761179948091,2.87,180.85,180.76,2.46385489]
[1761179948283,4.05710874,180.84,180.77,45.92]
[1761179948480,2.87,180.82,180.72,2.46385489]
[1761179948684,4.05710874,180.81,180.73,32.94]
[1761179948889,2.87,180.82,180.73,32.94]
[1761179949187,4.05882732,180.81,180.73,32.94]
[1761179949381,2.87,180.82,180.74,4.9787]
[1761179949587,2.87,180.84,180.73,32.94]
[1761179949887,4.05866342,180.83,180.73,32.94]
[1761179950086,4.05866342,180.82,180.73,32.94]
[1761179950287,2.87,180.84,180.73,32.94]
[1761179950487,4.05866793,180.83,180.73,32.94]
[1761179950793,8.02372565,180.87,180.77,2.46385489]
[1761179950985,4.05840789,180.86,180.77,2.46385489]
[1761179951181,4.05840789,180.85,180.76,4.9783]
[1761179951385,6.92840789,180.84,180.76,4.9783]
[1761179951578,4.05840789,180.83,180.76,4.9783]
[1761179951783,4.05840789,180.82,180.76,4.9783]
[1761179951984,4.05840789,180.81,180.76,4.9783]
[1761179952185,2.87,180.84,180.76,4.9783]
[1761179952380,4.05955776,180.83,180.76,4.9783]
[1761179952590,4.05955776,180.82,180.76,4.9783]
[1761179952790,4.05955776,180.81,180.76,4.9783]
[1761179952990,2.87,180.84,180.76,4.9783]
[1761179953188,4.05972177,180.83,180.76,4.9783]
[1761179953382,4.05972177,180.82,180.76,4.9783]
[1761179953586,2.87,180.84,180.76,4.9783]
[1761179953794,4.05973326,180.83,180.76,4.9783]
[1761179953989,4.05973326,180.82,180.76,4.9783]
[1761179954186,4.05973326,180.81,180.76,4.9783]
[1761179954388,2.87,180.83,180.76,4.9783]
[1761179954587,4.05993424,180.82,180.76,4.9783]
[1761179954783,4.05993424,180.81,180.76,4.9783]
[1761179954988,2.87,180.83,180.76,4.9783]
[1761179955189,4.05993375,180.82,180.76,4.9783]
[1761179955388,4.05993375,180.81,180.76,4.9783]
[1761179955590,2.87,180.83,180.76,4.9783]
[1761179955891,4.06000728,180.82,180.76,4.9783]
[1761179956095,4.06000728,180.81,180.76,4.9783]
[1761179956295,2.87,180.83,180.76,4.9783]
[1761179956593,4.06008288,180.82,180.76,4.9783]
[1761179956793,4.06008288,180.81,180.76,4.9783]
[1761179957095,2.87,180.83,180.76,4.9783]
[1761179957295,4.05994647,180.82,180.76,4.9783]
[1761179957593,4.05994647,180.81,180.76,4.9783]
[1761179957794,2.87,180.83,180.76,4.9783]
[1761179957995,4.06011228,180.82,180.76,4.9783]
[1761179958299,4.06011228,180.81,180.76,4.9783]
[1761179958500,2.87,180.83,180.76,4.9783]
[1761179958689,4.06014258,180.82,180.76,4.9783]
[1761179958889,4.06014258,180.81,180.76,4.9783]
[1761179959189,2.87,180.83,180.76,4.9783]
[1761179959389,4.05997367,180.82,180.76,4.9783]
[1761179959589,4.05997367,180.81,180.76,4.9783]
[1761179959794,2.87,180.83,180.76,4.9783]
[1761179959985,4.06013885,180.82,180.76,4.9783]
[1761179960187,4.06013885,180.81,180.76,4.9783]
[1761179960386,2.87,180.83,180.76,4.9783]
[1761179960583,4.06012931,180.82,180.76,4.9783]
[1761179960785,2.87,180.8,180.78,1.57865354]
[1761179960996,2.87,180.78,180.74,1.57865354]
[1761179961187,2.87,180.82,180.74,1.57865354]
[1761179961495,2.87,180.8,180.74,1.57865354]
[1761179961690,2.87,180.78,180.74,1.57865354]
[1761179961890,6.90898304,180.77,180.73,32.94]
[1761179962089,2.87,180.77,180.73,32.94]
[1761179966807,4.11736071,180.76,180.73,32.94]
[1761179967106,2.87,180.77,180.73,32.94]
[1761179967307,4.11725801,180.76,180.73,32.94]
[1761179967504,2.87,180.77,180.73,32.94]
[1761179967705,4.11713389,180.76,180.73,32.94]
[1761179968008,2.87,180.77,180.73,32.94]
[1761179968202,4.11713347,180.76,180.73,32.94]
[1761179968402,2.87,180.77,180.73,32.94]
[1761179968699,4.11678022,180.76,180.73,32.94]
[1761179968899,2.87,180.77,180.73,32.94]
[1761179969100,2.96,180.75,180.67,1.57865354]
[1761179969295,7.07700938,180.74,180.67,1.57865354]
[1761179969501,1.57865354,180.76,180.67,1.57865354]
[1761179969502,7.07700938,180.73,180.67,1.57865354]
[1761179969708,2.96,180.71,180.66,45.92]
[1761179972801,2.96,180.71,180.66,50.9009]
[1761179973002,8.01572542,180.74,180.67,1.57865354]
[1761179973200,4.11145369,180.73,180.67,1.57865354]
[1761179973403,2.96,180.74,180.67,1.57865354]
[1761179973999,2.96,180.74,180.68,4.9806]
[1761179975919,2.96,180.74,180.68,6.55925354]
[1761179977822,2.96,180.74,180.68,4.9806]
[1761179981023,2.96,180.74,180.66,47.49865354]
[1761179981024,2.96,180.74,180.69,4.9802]
[1761179982019,2.96,180.74,180.69,6.55885354]
[1761179982621,4.10556663,180.77,180.7,4.9798]
[1761179982922,2.96,180.78,180.72,1.57865354]
[1761179983118,2.96,180.76,180.7,1.57865354]
[1761179983627,2.96,180.76,180.7,6.55855354]
[1761179988627,2.96,180.76,180.71,4.9796]
[1761179988827,6.74326263,180.82,180.7,1.57865354]
[1761179988828,2.96,180.81,180.7,1.57865354]
[1761179989126,7.06606813,180.8,180.73,1.57865354]
[1761179989329,2.96,180.8,180.74,45.92]
[1761179989521,2.96,180.8,180.74,50.8988]
[1761179990026,2.96,180.8,180.74,45.92]
[1761179990234,2.96,180.78,180.74,45.92]
[1761179996438,2.96,180.81,180.74,45.92]
[1761179996640,4.12087756,180.8,180.74,45.92]
[1761179996841,4.12087756,180.79,180.74,45.92]
[1761179997041,4.12087756,180.78,180.74,45.92]
[1761179997340,2.96,180.81,180.74,45.92]
[1761179997541,7.08148132,180.8,180.74,45.92]
[1761179997744,7.08148132,180.79,180.74,45.92]
[1761179997944,4.12148132,180.78,180.74,45.92]
[1761179998143,2.96,180.79,180.74,45.92]
[1761179998345,4.12148202,180.78,180.74,45.92]
[1761179998539,2.95,180.78,180.74,45.92]
[1761180001340,4.12363161,180.77,180.74,45.92]
[1761180001637,2.95,180.78,180.74,45.92]
[1761180001837,4.12422434,180.77,180.74,45.92]
[1761180002039,2.95,180.78,180.74,45.92]
[1761180002247,8.11460909,180.83,180.75,1.57865354]
[1761180002440,8.99526068,180.82,180.75,1.57865354]
[1761180002640,4.12485457,180.81,180.75,1.57865354]
[1761180002841,4.12485457,180.8,180.75,1.57865354]
[1761180003145,4.8701181,180.82,180.75,1.57865354]
[1761180003351,4.09066671,180.81,180.75,1.57865354]
[1761180003546,4.09066671,180.8,180.75,1.57865354]
[1761180003746,4.09066671,180.79,180.77,4.978]
[1761180003940,8.11460909,180.83,180.75,1.57865354]
[1761180004148,4.09128678,180.82,180.75,1.57865354]
[1761180004343,4.09128678,180.81,180.75,1.57865354]
[1761180004546,4.09128678,180.8,180.75,1.57865354]
[1761180004747,4.09128678,180.79,180.76,4.9783]
[1761180004949,8.11460909,180.83,180.76,4.9783]
[1761180005150,2.95,180.81,180.76,4.9783]
[1761180005350,7.04186444,180.8,180.76,4.9783]
[1761180005651,2.95,180.78,180.74,50.8989]
[1761180005852,7.04186444,180.77,180.74,50.8989]
[1761180006039,2.95,180.77,180.74,50.8989]
[1761180006650,4.09329614,180.76,180.74,50.8989]
[1761180006850,2.95,180.77,180.74,50.8989]
[1761180007055,4.09329614,180.76,180.74,50.8989]
[1761180007354,2.95,180.77,180.74,50.8989]
[1761180007553,4.09327195,180.76,180.74,50.8989]
[1761180007751,2.95,180.77,180.74,50.8989]
[1761180007950,4.09327195,180.76,180.74,50.8989]
[1761180008152,2.95,180.77,180.74,50.8989]
[1761180008352,4.09339402,180.76,180.74,50.8989]
[1761180008551,2.95,180.77,180.74,50.8989]
[1761180008751,4.09324631,180.76,180.74,50.8989]
[1761180008952,2.95,180.77,180.74,50.8989]
[1761180009154,4.09324631,180.76,180.74,50.8989]
[1761180009357,2.95,180.77,180.74,50.8989]
[1761180010158,4.09333604,180.76,180.74,50.8989]
[1761180010359,2.95,180.77,180.74,50.8989]
[1761180010659,4.09318903,180.76,180.74,50.8989]
[1761180010859,2.95,180.77,180.74,50.8989]
[1761180011051,4.09318778,180.76,180.74,50.8989]
[1761180011250,2.95,180.77,180.74,50.8989]
[1761180011460,4.09322161,180.76,180.74,50.8989]
[1761180011756,2.95,180.77,180.74,50.8989]
[1761180011956,4.09322161,180.76,180.74,50.8989]
[1761180012257,2.95,180.77,180.74,50.8989]
[1761180012458,4.09319768,180.76,180.74,50.8989]
[1761180012652,2.95,180.77,180.74,50.8989]
[1761180012857,2.95,180.77,180.74,52.47755354]
[1761180017475,4.07419868,180.76,180.74,52.47755354]
[1761180017760,2.95,180.77,180.74,52.47755354]
[1761180018064,4.07419743,180.76,180.74,52.47755354]
[1761180018257,2.95,180.77,180.74,52.47755354]
[1761180018450,4.07488742,180.76,180.74,52.47755354]
[1761180018657,2.95,180.76,180.74,45.92]
[1761180019148,2.95,180.76,180.64,10.23096395]
[1761180019350,2.95,180.72,180.62,10.23096395]
[1761180019558,2.95,180.7,180.61,1.57865354]
[1761180019749,5.0297321,180.69,180.61,1.57865354]
[1761180019954,2.95,180.7,180.6,4.9828]
[1761180020150,2.95,180.68,180.6,6.56145354]
[1761180020363,9.39251339,180.67,180.6,1.57865354]
[1761180020559,7.97710612,180.66,180.61,46.16]
[1761180020864,12.74761004,180.65,180.61,46.16]
[1761180021052,5.43071622,180.64,180.61,46.16]
[1761180021258,2.95,180.65,180.61,46.16]
[1761180021456,5.42624412,180.64,180.61,46.16]
[1761180021657,2.95,180.68,180.61,46.16]
[1761180021864,12.65355303,180.67,180.61,46.16]
[1761180022065,12.65355303,180.66,180.61,46.16]
[1761180022266,5.31022128,180.65,180.61,46.16]
[1761180022467,2.95,180.66,180.61,46.16]
[1761180024059,4.38969287,180.65,180.61,46.16]
[1761180024257,2.83,180.69,180.61,46.16]
[1761180024463,12.34338014,180.68,180.61,46.16]
[1761180024662,4.38802309,180.67,180.61,46.16]
[1761180024960,7.21802309,180.66,180.61,46.16]
[1761180025162,2.83,180.66,180.61,46.16]
[1761180025762,2.83,180.7,180.61,48.63109794]
[1761180025954,7.20382439,180.69,180.61,48.63109794]
[1761180026155,4.37382439,180.68,180.61,48.63109794]
[1761180026460,2.83,180.69,180.61,48.63109794]
[1761180026662,4.3728463,180.68,180.61,48.63109794]
[1761180026964,2.83,180.69,180.61,53.61359794]
[1761180027172,4.3728463,180.68,180.61,53.61359794]
[1761180027465,2.83,180.69,180.61,53.61359794]
[1761180027664,4.37193284,180.68,180.61,53.61359794]
[1761180027861,2.83,180.69,180.61,53.61359794]
[1761180028063,4.37193284,180.68,180.61,53.61359794]
[1761180028261,2.83,180.69,180.61,53.61359794]
[1761180028462,4.371066,180.68,180.61,53.61359794]
[1761180028663,2.83,180.69,180.61,53.61359794]
[1761180028864,4.371066,180.68,180.61,53.61359794]
[1761180029061,2.83,180.69,180.61,53.61359794]
[1761180029269,4.37005451,180.68,180.61,53.61359794]
[1761180029569,4.37005451,180.67,180.61,53.61359794]
[1761180029769,4.37005451,180.66,180.61,53.61359794]
[1761180029970,2.83,180.69,180.61,53.61359794]
[1761180030269,4.36980096,180.68,180.61,53.61359794]
[1761180030469,4.36980096,180.67,180.61,53.61359794]
[1761180030668,4.36980096,180.66,180.61,53.61359794]
[1761180030868,2.83,180.69,180.61,53.61359794]
[1761180031067,4.36792352,180.68,180.61,53.61359794]
[1761180031372,4.36792352,180.67,180.61,53.61359794]
[1761180031565,4.36792352,180.66,180.61,53.61359794]
[1761180031870,2.83,180.69,180.61,53.61359794]
[1761180032070,4.36647853,180.68,180.61,53.61359794]
[1761180032370,4.36647853,180.67,180.61,53.61359794]
[1761180032572,2.83,180.69,180.61,53.61359794]
[1761180032762,4.36520135,180.68,180.61,53.61359794]
[1761180032962,4.36520135,180.67,180.61,53.61359794]
[1761180033267,2.83,180.69,180.61,53.61359794]
[1761180034361,4.36485278,180.68,180.64,2.47109794]
[1761180034570,9.55752552,180.73,180.64,2.47109794]
[1761180034867,2.69,180.73,180.64,2.47109794]
[1761180035571,4.36332804,180.72,180.64,2.47109794]
[1761180035765,4.36332804,180.71,180.64,2.47109794]
[1761180036068,2.69,180.73,180.67,4.9808]
[1761180036271,7.05372042,180.72,180.68,46.12]
[1761180036471,4.36372042,180.71,180.68,46.12]
[1761180036770,2.69,180.72,180.68,46.12]
[1761180036971,4.35106848,180.71,180.68,46.12]
[1761180037167,2.69,180.72,180.68,46.12]
[1761180037368,4.35127237,180.71,180.68,46.12]
[1761180037666,2.69,180.72,180.68,46.12]
[1761180037869,4.35105482,180.71,180.68,46.12]
[1761180038073,2.69,180.72,180.68,46.12]
[1761180038372,4.35127443,180.71,180.68,46.12]
[1761180038671,2.69,180.72,180.68,46.12]
[1761180038972,4.35107279,180.71,180.68,46.12]
[1761180039267,2.69,180.72,180.68,46.12]
[1761180039472,4.35120378,180.71,180.68,46.12]
[1761180039662,2.69,180.72,180.68,46.12]
[1761180039972,4.35120378,180.71,180.68,46.12]
[1761180040267,2.69,180.72,180.68,46.12]
[1761180042570,2.69,180.76,180.68,46.12]
[1761180042776,4.35155416,180.75,180.68,46.12]
[1761180043071,4.35155416,180.74,180.68,46.12]
[1761180043375,4.35155416,180.73,180.68,46.12]
[1761180043576,2.69,180.76,180.68,46.12]
[1761180043775,4.35190239,180.75,180.68,46.12]
[1761180043975,7.04190239,180.74,180.69,4.9801]
[1761180044272,4.35190239,180.73,180.69,4.9801]
[1761180044469,2.69,180.74,180.69,4.9801]
[1761180044671,4.35228141,180.73,180.69,4.9801]
[1761180044972,2.69,180.74,180.69,4.9801]
[1761180045172,4.35228141,180.73,180.69,4.9801]
[1761180045368,2.69,180.74,180.69,4.9801]
[1761180045568,4.35263708,180.73,180.69,4.9801]
[1761180045876,2.69,180.74,180.69,4.9801]
[1761180046174,4.35263708,180.73,180.69,4.9801]
[1761180046374,2.69,180.74,180.69,4.9801]
[1761180046569,4.35303882,180.73,180.69,4.9801]
[1761180046769,2.69,180.74,180.69,4.9801]
[1761180046966,4.35303882,180.73,180.69,4.9801]
[1761180047270,2.69,180.74,180.69,4.9801]
[1761180047469,4.35346666,180.73,180.69,4.9801]
[1761180047671,2.69,180.74,180.69,4.9801]
[1761180047871,4.35346666,180.73,180.69,4.9801]
[1761180048177,4.35440981,180.72,180.69,4.9801]
[1761180048378,2.69,180.74,180.69,4.9801]
[1761180048569,4.35440981,180.73,180.69,4.9801]
[1761180048770,4.35440981,180.72,180.69,4.9801]
[1761180048972,2.69,180.74,180.69,4.9801]
[1761180049169,4.35440981,180.73,180.69,4.9801]
[1761180049372,2.69,180.74,180.69,4.9801]
[1761180049373,4.35440981,180.72,180.69,4.9801]
[1761180049669,2.69,180.74,180.69,4.9801]
[1761180049867,4.35530825,180.73,180.69,4.9801]
[1761180050073,4.35530825,180.72,180.69,4.9801]
[1761180050273,2.69,180.74,180.69,4.9801]
[1761180050470,4.35627882,180.73,180.69,4.9801]
[1761180050675,4.35627882,180.72,180.69,4.9801]
[1761180050874,2.69,180.74,180.69,4.9801]
[1761180051071,2.69,180.72,180.68,46.12]
[1761180051380,7.04265886,180.71,180.68,46.12]
[1761180051577,2.69,180.71,180.68,46.12]
[1761180053574,4.35423938,180.7,180.68,46.12]
[1761180053882,2.69,180.71,180.68,46.12]
[1761180054179,7.04428857,180.7,180.68,46.12]
[1761180054381,7.04482828,180.69,180.68,46.12]
[1761180055178,2.69,180.68,180.58,2.47109794]
[1761180055487,2.69,180.66,180.59,46.04]
[1761180055782,4.35482828,180.65,180.59,46.04]
[1761180055982,7.04482828,180.64,180.59,46.04]
[1761180056179,2.69,180.64,180.59,46.04]
[1761180056985,2.69,180.62,180.59,46.04]
[1761180057781,2.69,180.65,180.59,46.04]
[1761180057978,2.69,180.63,180.59,46.04]
[1761180058287,4.34272275,180.62,180.59,46.04]
[1761180058491,2.69,180.63,180.59,46.04]
[1761180058688,4.34189589,180.62,180.59,46.04]
[1761180058889,2.69,180.63,180.59,46.04]
[1761180059187,7.23197576,180.62,180.59,46.04]